bitfinex/quotes_BTCUSD_20230109
["timestamp","ask_amount","ask_price","bid_price","bid_amount"]
[1673277081770,0.61355413,17282.0,17281.0,0.864653]
[1673277083885,1.85993388,17282.0,17281.0,0.864653]
[1673277084149,1.31161325,17282.0,17281.0,0.102]
[1673277084406,1.45713224,17282.0,17281.0,0.102]
[1673277084966,1.89025582,17282.0,17281.0,0.102]
[1673277085196,2.40937244,17282.0,17281.0,0.102]
[1673277086207,2.77202544,17282.0,17281.0,0.102]
[1673277087062,2.17498144,17282.0,17281.0,0.102]
[1673277088318,2.17498144,17282.0,17281.0,0.13439292]
[1673277088675,2.75361744,17282.0,17281.0,0.13439292]
[1673277090881,3.10569411,17282.0,17281.0,0.13439292]
[1673277091133,3.40569411,17282.0,17281.0,0.13439292]
[1673277091411,3.40569411,17282.0,17281.0,0.13431752]
[1673277091664,3.73999246,17282.0,17281.0,0.13431752]
[1673277091923,3.43999246,17282.0,17281.0,0.13431752]
[1673277092435,3.73999246,17282.0,17281.0,0.13431752]
[1673277092671,2.58657749,17282.0,17281.0,0.13431752]
[1673277093944,2.08850405,17282.0,17281.0,0.37456074]
[1673277094200,1.62444483,17282.0,17281.0,1.15773895]
[1673277094449,1.62444483,17282.0,17281.0,1.12039195]
[1673277094935,2.05710454,17282.0,17281.0,1.12039195]
[1673277095481,1.62446531,17282.0,17281.0,1.12039195]
[1673277096002,1.45141035,17282.0,17281.0,1.12039195]
[1673277096537,0.87277435,17282.0,17281.0,1.12039195]
[1673277097039,0.61317951,17282.0,17281.0,8.62039195]
[1673277097553,0.87277435,17282.0,17281.0,8.62039195]
[1673277097793,0.87277435,17282.0,17281.0,8.6205202]
[1673277097794,0.61317951,17282.0,17281.0,8.6205202]
[1673277098054,0.61317951,17282.0,17281.0,1.1205202]
[1673277098306,0.44012358,17282.0,17281.0,1.5205202]
[1673277098559,0.44012358,17282.0,17281.0,9.5991902]
[1673277098805,0.61322755,17282.0,17281.0,9.5991902]
[1673277099829,0.61322755,17282.0,17281.0,2.0991902]
[1673277101450,0.61322755,17282.0,17281.0,1.5205202]
[1673277101619,0.61322755,17282.0,17281.0,1.52039195]
[1673277101878,0.87282239,17282.0,17281.0,1.52039195]
[1673277103479,0.61322755,17282.0,17281.0,2.20986195]
[1673277103740,0.61322755,17282.0,17281.0,10.28853195]
[1673277104028,0.61322755,17282.0,17281.0,10.71393157]
[1673277104257,0.44012358,17282.0,17281.0,11.29260157]
[1673277105243,0.61322755,17282.0,17281.0,10.28853195]
[1673277105759,0.61322755,17282.0,17281.0,10.28877595]
[1673277105760,0.87282239,17282.0,17281.0,10.28877595]
[1673277106018,0.87282239,17282.0,17281.0,2.78877595]
[1673277106506,0.87282239,17282.0,17281.0,10.28853195]
[1673277107014,0.87297948,17282.0,17281.0,9.70986195]
[1673277107278,1.04582931,17282.0,17281.0,9.70986195]
[1673277107521,1.04582931,17282.0,17281.0,2.21010595]
[1673277107773,1.21912054,17282.0,17281.0,2.21010595]
[1673277108021,0.87300965,17282.0,17281.0,9.71010595]
[1673277108517,1.04582931,17282.0,17281.0,9.71010595]
[1673277108764,0.87301113,17282.0,17281.0,9.71010595]
[1673277109005,0.87301113,17282.0,17281.0,2.21010595]
[1673277109266,1.21912202,17282.0,17281.0,2.20986195]
[1673277109546,1.04582931,17282.0,17281.0,2.20986195]
[1673277110332,1.04582931,17282.0,17281.0,1.80986195]
[1673277111890,1.04582931,17282.0,17281.0,1.81010595]
[1673277113674,0.87304817,17282.0,17281.0,1.81010595]
[1673277113932,0.61345333,17282.0,17281.0,9.73550557]
[1673277114226,0.44012358,17282.0,17281.0,11.65392346]
[1673277114445,0.44012358,17282.0,17281.0,11.11624557]
[1673277115217,0.44012358,17282.0,17281.0,10.53757557]
[1673277115726,0.44012358,17282.0,17281.0,11.43757557]
[1673277115980,0.44012358,17282.0,17281.0,10.83757557]
[1673277116227,0.007,17282.0,17281.0,11.43757557]
[1673277116507,0.007,17282.0,17281.0,10.83757557]
[1673277116749,0.007,17282.0,17281.0,12.03152324]
[1673277117018,0.17332975,17285.0,17282.0,0.4]
[1673277117258,0.17332975,17285.0,17283.0,1.94525862]
[1673277117499,0.17332975,17285.0,17284.0,1.01401751]
[1673277117746,0.17332975,17285.0,17284.0,1.99258651]
[1673277117997,0.17332975,17285.0,17284.0,9.49258651]
[1673277118282,0.43292459,17286.0,17284.0,10.07115551]
[1673277118556,0.069,17285.0,17284.0,9.59680251]
[1673277118797,0.43292459,17286.0,17284.0,10.07015551]
[1673277119039,0.43292459,17286.0,17284.0,10.14861388]
[1673277119040,0.069,17285.0,17284.0,10.14861388]
[1673277119335,0.43292459,17286.0,17284.0,10.61456688]
[1673277119544,0.50192459,17286.0,17285.0,0.762653]
[1673277119795,0.67470573,17286.0,17285.0,1.452889]
[1673277120054,0.50170672,17286.0,17285.0,1.452889]
[1673277120304,0.43270672,17286.0,17285.0,1.452889]
[1673277120551,0.50170672,17286.0,17285.0,1.452889]
[1673277120815,0.24211188,17286.0,17285.0,2.45682462]
[1673277121067,0.069,17286.0,17285.0,2.031425]
[1673277121314,0.24211188,17286.0,17285.0,2.031425]
[1673277121557,0.24211188,17286.0,17285.0,9.531425]
[1673277121806,0.77881761,17287.0,17286.0,0.4]
[1673277122066,0.43270672,17287.0,17286.0,0.762653]
[1673277122315,0.77881761,17287.0,17286.0,0.362653]
[1673277122560,0.60570573,17287.0,17286.0,0.362653]
[1673277122811,1.17652645,17287.0,17285.0,0.5117]
[1673277123066,0.92393161,17287.0,17286.0,0.109]
[1673277123328,0.92393161,17287.0,17286.0,0.471653]
[1673277123329,0.99867209,17287.0,17286.0,0.471653]
[1673277123576,0.92393161,17287.0,17286.0,0.471653]
[1673277124093,1.18344678,17287.0,17286.0,0.471653]
[1673277124363,0.7507179,17287.0,17286.0,0.471653]
[1673277124638,0.77883977,17287.0,17286.0,0.362653]
[1673277124875,0.61261299,17287.0,17286.0,0.362653]
[1673277125385,0.61961299,17287.0,17286.0,0.471653]
[1673277126400,0.79283977,17287.0,17286.0,0.471653]
[1673277126891,0.61960409,17287.0,17286.0,0.471653]
[1673277128351,0.86656431,17287.0,17286.0,0.109]
[1673277128843,0.86656356,17287.0,17286.0,0.109]
[1673277129096,0.86656356,17287.0,17286.0,0.47332868]
[1673277129343,0.86656356,17287.0,17286.0,0.471653]
[1673277129845,0.6196129,17287.0,17286.0,0.471653]
[1673277130092,0.36011089,17287.0,17286.0,0.471653]
[1673277130344,1.05240698,17287.0,17286.0,0.471653]
[1673277130583,0.86657881,17287.0,17286.0,0.471653]
[1673277130822,1.052407,17287.0,17286.0,0.471653]
[1673277131064,0.79283977,17287.0,17286.0,0.471653]
[1673277131315,0.86713738,17287.0,17286.0,0.471653]
[1673277131571,0.86713738,17287.0,17286.0,0.109]
[1673277131836,0.52102649,17287.0,17286.0,0.109]
[1673277132103,0.48829761,17287.0,17286.0,0.471653]
[1673277132352,0.48829761,17287.0,17286.0,0.109]
[1673277132615,2.16435223,17287.0,17286.0,0.109]
[1673277132870,2.52700523,17287.0,17286.0,0.109]
[1673277133114,2.46199123,17287.0,17286.0,0.109]
[1673277133373,2.9112252,17287.0,17286.0,0.109]
[1673277133631,3.05476158,17287.0,17286.0,0.109]
[1673277133885,3.05476158,17287.0,17286.0,0.08997391]
[1673277134143,3.16626158,17287.0,17286.0,0.08997391]
[1673277134466,3.73733593,17287.0,17282.0,0.42554962]
[1673277134685,3.33638532,17287.0,17286.0,0.004]
[1673277134915,3.40926406,17287.0,17286.0,0.004]
[1673277135152,3.77191706,17287.0,17286.0,0.004]
[1673277135395,2.85084271,17287.0,17283.0,1.43388178]
[1673277135647,0.77944817,17284.0,17283.0,1.00848216]
[1673277135898,0.60623493,17284.0,17283.0,1.00848216]
[1673277136131,0.60623493,17284.0,17283.0,1.37113516]
[1673277137144,0.60623493,17284.0,17283.0,0.362653]
[1673277137389,0.85335874,17284.0,17283.0,0.004]
[1673277137646,1.08550633,17284.0,17282.0,0.4]
[1673277137901,1.02059576,17284.0,17283.0,0.082]
[1673277138148,1.09160975,17284.0,17283.0,0.082]
[1673277138387,0.48672399,17284.0,17283.0,0.082]
[1673277138651,0.87772399,17284.0,17281.0,0.6244311]
[1673277138894,0.85063411,17283.0,17282.0,0.082]
[1673277139381,0.85063411,17283.0,17281.0,0.6244311]
[1673277139635,0.85063411,17283.0,17282.0,0.4]
[1673277140144,0.85063411,17283.0,17281.0,1.0244311]
[1673277140387,0.43311721,17282.0,17281.0,1.0244311]
[1673277140630,0.77961504,17282.0,17281.0,1.0244311]
[1673277140870,0.43311721,17282.0,17281.0,1.3870841]
[1673277141871,0.44211721,17282.0,17281.0,1.4690841]
[1673277142647,0.78861504,17282.0,17281.0,1.4690841]
[1673277142901,0.44211721,17282.0,17281.0,1.4690841]
[1673277143158,0.44211721,17282.0,17281.0,1.46959769]
[1673277143445,0.44211721,17282.0,17281.0,1.0690841]
[1673277143943,0.44211721,17282.0,17281.0,1.4690841]
[1673277144195,0.44211721,17282.0,17281.0,1.47046867]
[1673277144452,0.78861117,17282.0,17281.0,1.4690841]
[1673277144705,0.44211334,17282.0,17281.0,1.4690841]
[1673277145440,0.44211334,17282.0,17281.0,1.0690841]
[1673277145694,0.61536816,17282.0,17281.0,1.4690841]
[1673277146189,0.61536816,17282.0,17281.0,1.47046867]
[1673277146454,0.61536816,17282.0,17281.0,1.4690841]
[1673277147225,0.61536816,17282.0,17281.0,8.9690841]
[1673277147473,0.44210538,17282.0,17281.0,8.9690841]
[1673277147735,0.44210126,17282.0,17281.0,1.0690841]
[1673277147987,0.61536816,17282.0,17281.0,0.7064311]
[1673277148722,0.61536816,17282.0,17281.0,1.0690841]
[1673277148987,0.61536816,17282.0,17281.0,0.11439292]
[1673277148988,0.78862012,17282.0,17281.0,0.11439292]
[1673277149229,0.3895438,17282.0,17281.0,0.11439292]
[1673277149482,1.89979265,17282.0,17281.0,0.11439292]
[1673277150222,1.7859436,17282.0,17281.0,0.03239292]
[1673277150477,1.85490079,17282.0,17281.0,0.03639292]
[1673277150723,1.42716296,17282.0,17281.0,0.03239292]
[1673277150981,1.18875411,17282.0,17281.0,0.07139292]
[1673277151218,0.60611811,17282.0,17281.0,0.03239292]
[1673277151468,0.61011811,17282.0,17281.0,0.07139292]
[1673277152480,0.60611811,17282.0,17281.0,0.03239292]
[1673277152733,0.61611811,17282.0,17281.0,0.10739292]
[1673277153227,1.19475411,17282.0,17281.0,0.10739292]
[1673277153722,1.19475411,17282.0,17281.0,7.60739292]
[1673277153967,1.19475411,17282.0,17281.0,7.97004592]
[1673277154217,1.77339011,17282.0,17281.0,7.97004592]
[1673277154478,1.99956089,17282.0,17281.0,7.97004592]
[1673277154719,1.65320367,17282.0,17281.0,0.10739292]
[1673277156264,1.99942674,17282.0,17281.0,0.10731387]
[1673277156781,1.99942674,17282.0,17281.0,0.30731387]
[1673277157336,1.65320367,17282.0,17281.0,0.30731387]
[1673277158444,1.79888248,17282.0,17281.0,0.30731387]
[1673277160008,1.98473654,17282.0,17281.0,0.30731387]
[1673277161815,1.79888248,17282.0,17281.0,0.30731387]
[1673277162892,1.93813396,17282.0,17281.0,0.30731387]
[1673277164467,3.23211907,17282.0,17281.0,0.30731387]
[1673277165221,3.23211907,17282.0,17281.0,0.26962409]
[1673277165476,3.23179286,17282.0,17281.0,0.26962409]
[1673277165738,2.70248696,17282.0,17281.0,0.2]
[1673277165994,2.81148696,17282.0,17281.0,0.207]
[1673277166283,3.33077028,17282.0,17281.0,0.207]
[1673277166780,2.92177028,17282.0,17281.0,0.2]
[1673277167032,3.38081091,17282.0,17281.0,0.207]
[1673277167293,3.68081091,17282.0,17281.0,0.207]
[1673277167576,3.33077028,17282.0,17281.0,0.207]
[1673277167810,3.22177028,17282.0,17281.0,0.2]
[1673277168064,3.33077028,17282.0,17281.0,0.207]
[1673277168313,3.22177028,17282.0,17281.0,0.2]
[1673277168563,3.33077028,17282.0,17281.0,0.207]
[1673277168830,3.22177028,17282.0,17281.0,0.2]
[1673277169097,3.33077028,17282.0,17281.0,0.207]
[1673277169348,3.03077028,17282.0,17281.0,0.207]
[1673277172021,3.75750194,17282.0,17281.0,0.207]
[1673277174296,3.64850194,17282.0,17281.0,0.2]
[1673277174819,3.68450194,17282.0,17281.0,0.205]
[1673277175061,3.64850194,17282.0,17281.0,0.15931699]
[1673277175312,3.75750194,17282.0,17281.0,0.16631699]
[1673277175808,3.97699667,17282.0,17281.0,0.16631699]
[1673277176070,4.20378887,17282.0,17281.0,0.16631699]
[1673277176902,4.42708887,17282.0,17281.0,0.16631699]
[1673277179037,3.84201452,17282.0,17281.0,0.16631699]
[1673277179284,4.20000832,17282.0,17281.0,0.16631699]
[1673277179537,4.42680052,17282.0,17281.0,0.16631699]
[1673277180320,3.84201452,17282.0,17281.0,0.16631699]
[1673277181072,3.84201452,17282.0,17281.0,0.10267719]
[1673277181073,4.47996304,17282.0,17281.0,0.10267719]
[1673277181586,4.65530501,17282.0,17281.0,0.10267719]
[1673277182085,4.12696438,17282.0,17281.0,0.10267719]
[1673277182587,4.17515335,17282.0,17281.0,0.10267719]
[1673277182841,3.91889598,17282.0,17281.0,0.10267719]
[1673277183112,4.14568818,17282.0,17281.0,0.10267719]
[1673277183338,3.99981138,17282.0,17281.0,0.10267719]
[1673277183585,4.31636067,17282.0,17281.0,0.10267719]
[1673277183841,4.54315287,17282.0,17281.0,0.10267719]
[1673277184608,5.39812042,17282.0,17280.0,0.00670737]
[1673277184856,1.87979192,17281.0,17280.0,0.00670737]
[1673277185112,4.77167125,17281.0,17280.0,0.00345458]
[1673277186121,1.0096,17280.0,17279.0,0.00790019]
[1673277186374,4.40875829,17280.0,17279.0,1.9e-07]
[1673277186616,1.0096,17279.0,17278.0,0.00670741]
[1673277186878,4.17841375,17279.0,17278.0,0.00670741]
[1673277187142,4.77229088,17279.0,17278.0,0.00670741]
[1673277187638,4.90729088,17279.0,17278.0,0.00670741]
[1673277188428,4.89776081,17279.0,17278.0,0.00670741]
[1673277188696,4.89775977,17279.0,17278.0,0.00670741]
[1673277189202,5.07290017,17279.0,17278.0,0.00437237]
[1673277190466,4.48855415,17279.0,17278.0,0.00437237]
[1673277190754,5.07290017,17279.0,17278.0,0.00437237]
[1673277190969,4.01245415,17279.0,17278.0,0.00437237]
[1673277191210,3.61806195,17279.0,17278.0,0.00437237]
[1673277191455,3.8395366,17279.0,17278.0,0.00437237]
[1673277192000,4.2021896,17279.0,17278.0,0.00437237]
[1673277192235,4.40625204,17279.0,17278.0,0.00437237]
[1673277192763,4.70625204,17279.0,17278.0,0.00437237]
[1673277193320,5.29059806,17279.0,17278.0,0.00437237]
[1673277193790,5.04855204,17279.0,17278.0,0.00437237]
[1673277194063,4.87341164,17279.0,17278.0,0.00437237]
[1673277194599,5.04091164,17279.0,17278.0,0.00437237]
[1673277194858,5.08910061,17279.0,17278.0,0.00437237]
[1673277195101,5.14944512,17279.0,17278.0,8.846e-05]
[1673277196100,1.0096,17278.0,17277.0,0.00664741]
[1673277196347,3.73721783,17278.0,17277.0,0.00664741]
[1673277196609,3.92989879,17278.0,17277.0,0.00664741]
[1673277196859,3.93859653,17278.0,17277.0,0.00664741]
[1673277197171,3.93859653,17278.0,17277.0,0.00197566]
[1673277197377,4.07259653,17278.0,17277.0,0.00197566]
[1673277197621,4.65637716,17278.0,17277.0,0.00197566]
[1673277197864,4.60818819,17278.0,17277.0,0.00197566]
[1673277198362,3.97298819,17278.0,17277.0,0.00197566]
[1673277198610,3.18301003,17278.0,17277.0,0.00197566]
[1673277199362,3.70187501,17278.0,17277.0,0.00197566]
[1673277199622,3.68235433,17278.0,17277.0,0.00197566]
[1673277200121,4.00191377,17278.0,17277.0,0.00197566]
[1673277200378,3.38381377,17278.0,17277.0,0.00197566]
[1673277200869,3.96258377,17278.0,17277.0,0.00197566]
[1673277202623,3.79598377,17278.0,17277.0,0.00197566]
[1673277202882,3.79598377,17278.0,17277.0,0.00224365]
[1673277202883,2.97708003,17278.0,17277.0,0.00224365]
[1673277203129,2.97708003,17278.0,17277.0,0.00197566]
[1673277204177,2.46777647,17278.0,17277.0,0.00197566]
[1673277204959,2.98668021,17278.0,17277.0,0.00197566]
[1673277205206,3.28668021,17278.0,17277.0,0.00174209]
[1673277205451,3.64933321,17278.0,17277.0,0.00174209]
[1673277205945,3.28668021,17278.0,17277.0,0.00174209]
[1673277206199,3.28695609,17278.0,17277.0,0.00174209]
[1673277206693,2.76777647,17278.0,17277.0,0.00174209]
[1673277206937,3.13042947,17278.0,17277.0,0.00174209]
[1673277207438,3.2869883,17278.0,17277.0,0.00174209]
[1673277207684,2.76777647,17278.0,17277.0,0.00174209]
[1673277208434,3.13042947,17278.0,17277.0,0.00174209]
[1673277209190,3.54966783,17278.0,17277.0,0.00174209]
[1673277209443,4.34481121,17278.0,17277.0,0.00115075]
[1673277209702,4.84833603,17278.0,17277.0,0.00115075]
[1673277209949,4.63129474,17278.0,17277.0,0.00115075]
[1673277210437,5.05014787,17278.0,17277.0,0.00115075]
[1673277211427,4.63129474,17278.0,17277.0,0.00115075]
[1673277212166,5.05001655,17278.0,17277.0,0.00115075]
[1673277213665,4.46623592,17278.0,17277.0,0.00115075]
[1673277215422,0.55932103,17277.0,17276.0,0.0065519]
[1673277215674,4.64978166,17277.0,17276.0,0.0065519]
[1673277215920,4.26668435,17277.0,17276.0,0.0065519]
[1673277218394,5.11615162,17277.0,17276.0,0.00431439]
[1673277219205,5.22715162,17277.0,17276.0,0.00431439]
[1673277219964,4.69217785,17277.0,17276.0,0.00431439]
[1673277221438,4.70067785,17277.0,17276.0,0.00431439]
[1673277223415,4.58967785,17277.0,17276.0,0.00431439]
[1673277224670,4.17117384,17277.0,17276.0,0.00431439]
[1673277225175,3.96927858,17277.0,17276.0,0.00431439]
[1673277225427,4.17117384,17277.0,17276.0,0.00106076]
[1673277225690,4.17117384,17277.0,17275.0,0.00636439]
[1673277225691,1.13870572,17276.0,17275.0,0.00636439]
[1673277225940,4.42295083,17276.0,17275.0,0.00636439]
[1673277226202,4.00465529,17276.0,17275.0,0.00636439]
[1673277227202,4.01265529,17276.0,17275.0,0.00636439]
[1673277227455,4.78716923,17276.0,17275.0,0.00636439]
[1673277229999,5.05355873,17276.0,17275.0,0.00636439]
[1673277230229,5.95678406,17276.0,17275.0,0.00636439]
[1673277232514,0.74789038,17275.0,17274.0,0.00822397]
[1673277232772,4.67936115,17275.0,17274.0,0.00822397]
[1673277233026,3.66909549,17275.0,17274.0,0.00822397]
[1673277233298,3.66059549,17275.0,17274.0,0.00822397]
[1673277233547,3.66059549,17275.0,17274.0,0.00446021]
[1673277234068,4.07830176,17275.0,17274.0,0.00446021]
[1673277234314,4.08930176,17275.0,17274.0,0.00446021]
[1673277234565,4.68317889,17275.0,17274.0,0.00446021]
[1673277235345,4.68317889,17275.0,17274.0,0.00114916]
[1673277237659,4.69167889,17275.0,17274.0,0.00114916]
[1673277238433,4.69161889,17275.0,17274.0,0.00114916]
[1673277239694,4.09774176,17275.0,17274.0,0.00114916]
[1673277240984,4.09742547,17275.0,17274.0,0.00114916]
[1673277241518,4.09460347,17275.0,17274.0,0.00061317]
[1673277245544,1.17411817,17274.0,17272.0,0.0046865]
[1673277245793,3.1908235,17273.0,17272.0,0.0046865]
[1673277246053,3.95243984,17273.0,17272.0,0.0046865]
[1673277246572,3.36744437,17273.0,17272.0,0.0046865]
[1673277246823,3.00479137,17273.0,17272.0,0.0046865]
[1673277247902,3.36744437,17273.0,17272.0,0.0046865]
[1673277248976,3.44944437,17273.0,17272.0,0.0046865]
[1673277249172,3.36744437,17273.0,17272.0,0.0046865]
[1673277249426,3.37544437,17273.0,17272.0,0.0046865]
[1673277249644,3.37544437,17273.0,17272.0,0.00251159]
[1673277249885,3.7928236,17273.0,17272.0,0.00251159]
[1673277250178,0.14154646,17272.0,17262.0,4.58329998]
[1673277250423,0.17338808,17265.0,17263.0,0.97456263]
[1673277250705,0.04702315,17264.0,17263.0,1.41940153]
[1673277250951,0.4334702,17266.0,17263.0,1.41940153]
[1673277250952,0.03454058,17266.0,17263.0,1.78205453]
[1673277251212,0.03454058,17266.0,17265.0,0.6223]
[1673277251454,0.4334702,17267.0,17265.0,0.984953]
[1673277251710,0.4334702,17267.0,17266.0,0.586053]
[1673277252193,0.4334702,17267.0,17266.0,0.986053]
[1673277252445,0.4484702,17267.0,17266.0,0.986053]
[1673277253451,0.60685828,17267.0,17266.0,0.986053]
[1673277253699,0.44847939,17267.0,17266.0,0.986053]
[1673277253945,1.20099728,17267.0,17266.0,0.986053]
[1673277254480,1.78013628,17267.0,17266.0,0.874353]
[1673277254734,1.52005416,17267.0,17266.0,8.374353]
[1673277254993,1.78015658,17267.0,17266.0,8.374353]
[1673277255240,2.07351924,17267.0,17266.0,8.359353]
[1673277255496,1.72674308,17267.0,17266.0,7.959353]
[1673277255754,1.69327288,17267.0,17266.0,0.347653]
[1673277256010,1.72676614,17267.0,17265.0,0.64150756]
[1673277256284,1.173278,17267.0,17266.0,0.362898]
[1673277256567,1.29127761,17267.0,17266.0,0.362898]
[1673277257288,2.21144184,17267.0,17266.0,0.362898]
[1673277257532,3.07558084,17267.0,17263.0,1.08592013]
[1673277257799,0.55136836,17266.0,17265.0,0.4]
[1673277258050,1.70971236,17266.0,17265.0,0.762898]
[1673277259025,2.05639946,17266.0,17265.0,0.762898]
[1673277259526,2.05639946,17266.0,17265.0,0.362898]
[1673277259527,2.64647776,17266.0,17265.0,0.362898]
[1673277260281,2.14358537,17266.0,17264.0,0.65325602]
[1673277260537,0.89783052,17265.0,17264.0,0.65325602]
[1673277260808,2.63544852,17265.0,17263.0,7.5]
[1673277261062,2.51754261,17265.0,17264.0,0.762898]
[1673277261311,2.28940648,17265.0,17264.0,0.361038]
[1673277261588,2.80752126,17265.0,17264.0,0.361038]
[1673277261839,2.46103016,17265.0,17262.0,0.60064637]
[1673277262078,0.6064022,17264.0,17263.0,0.4]
[1673277262333,0.6064022,17264.0,17263.0,7.9]
[1673277262334,2.17086385,17264.0,17263.0,7.9]
[1673277262581,2.17086385,17264.0,17263.0,8.262923]
[1673277263334,2.17086385,17264.0,17263.0,0.762923]
[1673277263589,2.17086385,17264.0,17263.0,0.4]
[1673277264093,2.17086385,17264.0,17262.0,0.60064637]
[1673277264598,2.4940933,17264.0,17262.0,0.60064637]
[1673277265096,0.17325719,17263.0,17262.0,0.60064637]
[1673277265335,0.17325719,17263.0,17261.0,0.5116]
[1673277265336,1.94561677,17263.0,17261.0,0.5116]
[1673277265585,0.17320196,17262.0,17261.0,0.1116]
[1673277266082,0.17320196,17262.0,17261.0,1.41286041]
[1673277266083,1.158614,17262.0,17261.0,1.41286041]
[1673277266340,1.158614,17262.0,17261.0,8.91286041]
[1673277266836,1.173614,17262.0,17261.0,8.91286041]
[1673277267595,0.015,17262.0,17261.0,9.87802195]
[1673277267865,0.015,17262.0,17261.0,9.58243703]
[1673277268096,0.015,17262.0,17261.0,9.02456041]
[1673277269096,0.015,17262.0,17261.0,9.03770418]
[1673277270085,0.015,17262.0,17261.0,9.03845473]
[1673277270641,0.015,17262.0,17261.0,9.48236788]
[1673277270885,0.015,17262.0,17261.0,9.03770418]
[1673277271677,0.015,17262.0,17261.0,9.03845473]
[1673277272123,0.015,17262.0,17261.0,9.48249064]
[1673277272620,0.015,17262.0,17261.0,10.17353064]
[1673277272878,0.015,17262.0,17261.0,10.75287064]
[1673277273375,0.015,17262.0,17261.0,11.35287064]
[1673277273624,1e-08,17262.0,17261.0,11.86397064]
[1673277273879,1e-08,17262.0,17261.0,12.16397064]
[1673277274130,1e-08,17262.0,17261.0,11.26397064]
[1673277274369,1e-08,17262.0,17261.0,10.76137064]
[1673277274618,1e-08,17262.0,17261.0,10.81927767]
[1673277274862,1e-08,17262.0,17261.0,11.7188534]
[1673277275125,1e-08,17262.0,17261.0,11.1188534]
[1673277275380,1e-08,17262.0,17261.0,10.76094637]
[1673277275865,1e-08,17262.0,17261.0,10.8188534]
[1673277277120,1e-08,17262.0,17261.0,11.18051599]
[1673277277854,1e-08,17262.0,17261.0,10.58051599]
[1673277278122,1e-08,17262.0,17261.0,10.28051599]
[1673277278864,1e-08,17262.0,17261.0,10.83051599]
[1673277279751,1e-08,17262.0,17261.0,10.66090896]
[1673277280003,1e-08,17262.0,17261.0,10.36090896]
[1673277280260,1e-08,17262.0,17261.0,9.80594267]
[1673277280543,1e-08,17262.0,17261.0,10.24892458]
[1673277280790,1e-08,17262.0,17261.0,10.24957138]
[1673277281036,1e-08,17262.0,17261.0,10.82891138]
[1673277281308,1e-08,17262.0,17261.0,10.38528267]
[1673277281558,1e-08,17262.0,17261.0,10.8289192]
[1673277281815,1e-08,17262.0,17261.0,10.38528267]
[1673277282073,1e-08,17262.0,17261.0,10.8288808]
[1673277288687,1e-08,17262.0,17261.0,11.1288808]
[1673277288930,1e-08,17262.0,17261.0,10.8288808]
[1673277290690,1e-08,17262.0,17261.0,11.1288808]
[1673277291206,1e-08,17262.0,17261.0,11.30162431]
[1673277291703,1e-08,17262.0,17261.0,11.90162431]
[1673277292033,1e-08,17262.0,17261.0,11.30162431]
[1673277293486,1e-08,17262.0,17261.0,11.30212431]
[1673277293735,1e-08,17262.0,17261.0,11.00212431]
[1673277294570,1e-08,17262.0,17261.0,11.30212431]
[1673277295492,1e-08,17262.0,17261.0,11.00212431]
[1673277295734,1e-08,17262.0,17261.0,11.30212431]
[1673277296246,1e-08,17262.0,17261.0,10.55850287]
[1673277296486,1e-08,17262.0,17261.0,10.82890342]
[1673277298254,1e-08,17262.0,17261.0,10.38605936]
[1673277298500,1e-08,17262.0,17261.0,10.38508677]
[1673277298749,1e-08,17262.0,17261.0,10.38605936]
[1673277300293,1e-08,17262.0,17261.0,9.68554677]
[1673277300545,0.17320197,17262.0,17261.0,9.68554677]
[1673277302137,1e-08,17262.0,17261.0,9.68554677]
[1673277302374,0.17320197,17262.0,17261.0,9.68554677]
[1673277302599,1e-08,17262.0,17261.0,9.68554677]
[1673277305403,0.17320197,17262.0,17261.0,9.68554677]
[1673277305938,1e-08,17262.0,17261.0,9.68554677]
[1673277306912,1e-08,17262.0,17261.0,10.7083187]
[1673277307409,1e-08,17262.0,17261.0,10.8759187]
[1673277308175,1e-08,17262.0,17261.0,10.87565619]
[1673277308440,1e-08,17262.0,17261.0,12.05431959]
[1673277308762,1e-08,17262.0,17261.0,11.88721959]
[1673277309258,1e-08,17262.0,17261.0,12.15348915]
[1673277309507,1e-08,17262.0,17261.0,12.85581031]
[1673277310279,1e-08,17262.0,17261.0,12.15348915]
[1673277310528,1e-08,17262.0,17261.0,11.89571959]
[1673277311040,1e-08,17262.0,17261.0,11.59571959]
[1673277311258,1e-08,17262.0,17261.0,11.89571959]
[1673277311504,1e-08,17262.0,17261.0,11.89071959]
[1673277311753,1e-08,17262.0,17261.0,10.43598677]
[1673277313002,1e-08,17262.0,17261.0,10.43610785]
[1673277313741,1e-08,17262.0,17261.0,10.37990785]
[1673277314263,1e-08,17262.0,17261.0,10.82330672]
[1673277315011,1e-08,17262.0,17261.0,10.37990785]
[1673277316002,0.17320197,17262.0,17261.0,10.26838677]
[1673277316243,0.43308863,17262.0,17261.0,10.25988677]
[1673277316488,0.60640221,17262.0,17261.0,10.25988677]
[1673277316742,0.60640221,17262.0,17261.0,9.68054677]
[1673277317229,0.7800746,17262.0,17261.0,9.68054677]
[1673277317551,0.43355906,17262.0,17261.0,9.68273866]
[1673277317780,0.1736724,17262.0,17261.0,9.68273866]
[1673277318030,0.1736724,17262.0,17261.0,10.35996183]
[1673277318538,1e-08,17262.0,17261.0,10.35996183]
[1673277319022,1e-08,17262.0,17261.0,10.93733456]
[1673277319277,0.1736724,17262.0,17261.0,10.93710994]
[1673277320513,0.1736724,17262.0,17261.0,10.35776994]
[1673277321011,1e-08,17262.0,17261.0,10.35776994]
[1673277321249,1e-08,17262.0,17261.0,10.35799456]
[1673277321497,1e-08,17262.0,17261.0,10.35776994]
[1673277322326,0.1736724,17262.0,17261.0,10.35776994]
[1673277323335,1e-08,17262.0,17261.0,10.80343617]
[1673277323616,1e-08,17262.0,17261.0,11.10343617]
[1673277323847,1e-08,17262.0,17261.0,11.27587968]
[1673277324113,1e-08,17262.0,17261.0,11.39627968]
[1673277325879,1e-08,17262.0,17261.0,12.95987097]
[1673277326123,1e-08,17262.0,17261.0,13.1311202]
[1673277326380,0.43320906,17265.0,17262.0,1.02131454]
[1673277326624,0.43320906,17265.0,17263.0,1.38484327]
[1673277326872,0.43320906,17265.0,17264.0,0.762923]
[1673277327132,0.43320906,17265.0,17264.0,8.262923]
[1673277327384,0.43320906,17265.0,17264.0,8.842163]
[1673277327650,0.052,17265.0,17264.0,10.08584378]
[1673277327890,0.17367239,17266.0,17264.0,10.08584378]
[1673277328143,0.17367239,17266.0,17264.0,9.86582078]
[1673277328144,0.052,17265.0,17264.0,9.86582078]
[1673277328431,0.052,17265.0,17264.0,10.6410522]
[1673277328966,0.17367239,17267.0,17264.0,11.3801097]
[1673277329191,0.34651554,17267.0,17266.0,0.1678]
[1673277329441,0.17352999,17267.0,17266.0,2.089067]
[1673277330016,0.17352315,17267.0,17266.0,2.089067]